fUSD/lending_fUSD_20250107
["ID","MTS","AMOUNT","RATE_DAILY","PERIOD"]
[347993019,1736262652354,-1480.19,0.00010513,2]
[347993020,1736262652365,-1711.51,0.00010513,2]
[347993022,1736262652377,-500.0,0.00010513,2]
[347993025,1736262652391,-520.85,0.00010513,2]
[347993026,1736262652402,-958.66,0.00010513,2]
[347993028,1736262652414,-500.0,0.00010513,2]
[347993030,1736262652426,-500.0,0.00010513,2]
[347993032,1736262652437,-1152.24,0.00010513,2]
[347993034,1736262652448,-1150.08,0.00010513,2]
[347993036,1736262652459,-666.68,0.00010513,2]
[347993038,1736262652472,-1378.33,0.00010513,2]
[347993040,1736262652484,-500.0,0.00010513,2]
[347993042,1736262652497,-420.87,0.00010513,2]
[347993044,1736262652511,-500.0,0.00010513,2]
[347993046,1736262652522,-774.79,0.00010513,2]
[347993048,1736262652533,-4038.52,0.00010513,2]
[347993050,1736262652545,-4763.71,0.00010513,2]
[347993052,1736262652555,-563.38,0.00010513,2]
[347993054,1736262652583,-811.99,0.00010513,2]
[347993056,1736262652595,-936.82,0.00010513,2]
[347993058,1736262652608,-513.8,0.00010513,2]
[347993060,1736262652620,-842.07,0.00010513,2]
[347993062,1736262652631,-694.17,0.00010513,2]
[347993063,1736262652643,-1049.81,0.00010513,2]
[347993065,1736262652654,-500.0,0.00010513,2]
[347993067,1736262652665,-461.85748826,0.00010513,2]
[347993125,1736262653426,-127.22251174,0.00010513,2]
[347993127,1736262653437,-567.97,0.00010513,2]
[347993129,1736262653449,-505.05,0.00010513,2]
[347993131,1736262653462,-1866.33,0.00010513,2]
[347993133,1736262653476,-738.58,0.00010513,2]
[347993135,1736262653489,-819.88,0.00010513,2]
[347993137,1736262653502,-196.25288797,0.00010513,2]
[347993139,1736262653516,-333.87711203,0.00010513,2]
[347993141,1736262653528,-1830.99,0.00010513,2]
[347993143,1736262653540,-500.0,0.00010513,2]
[347993145,1736262653551,-5830.07,0.00010513,2]
[347993147,1736262653566,-647.88,0.00010513,2]
[347993148,1736262653587,-2668.27,0.00010513,2]
[347993150,1736262653598,-500.0,0.00010513,2]
[347993152,1736262653610,-500.0,0.00010513,2]
[347993154,1736262653622,-500.0,0.00010513,2]
[347993156,1736262653633,-851.11,0.00010513,2]
[347993158,1736262653646,-7203.94,0.00010513,2]
[347993161,1736262653657,-600.72,0.00010513,2]
[347993162,1736262653669,-3026.13,0.00010513,2]
[347993164,1736262653679,-542.15,0.00010513,2]
[347993167,1736262653691,-567.01,0.00010513,2]
[347993168,1736262653701,-500.0,0.00010513,2]
[347993170,1736262653712,-6045.92,0.00010513,2]
[347993172,1736262653723,-500.0,0.00010513,2]
[347993174,1736262653734,-500.0,0.00010513,2]
[347993176,1736262653747,-500.0,0.00010513,2]
[347993178,1736262653759,-15350.43288797,0.00010513,2]
[347993181,1736262653773,-358.33485164,0.00010513,2]
[347993183,1736262653785,-269.61825101,0.00010513,2]
[347993185,1736262653799,-795.93400938,0.00010513,2]
[347993187,1736262653811,-751.05,0.00010513,2]
[347993189,1736262653821,-500.0,0.00010513,2]
[347993191,1736262653837,-1425.12,0.00010513,2]
[347993193,1736262653853,-89.24919061,0.00010513,2]
[347993195,1736262653866,-410.75080939,0.00010513,2]
[347993197,1736262653880,-1384.98556673,0.00010513,2]
[347993203,1736262653933,-769.92443327,0.00010513,2]
[347993205,1736262653944,-500.0,0.00010513,2]
[347993207,1736262653956,-500.0,0.00010513,2]
[347993209,1736262653968,-500.0,0.00010513,2]
[347993211,1736262653979,-1807.01,0.00010513,2]
[347993213,1736262653990,-624.54,0.00010513,2]
[347993215,1736262654003,-1865.17,0.00010513,2]
[347993217,1736262654013,-797.28,0.00010513,2]
[347993219,1736262654024,-512.91,0.00010513,2]
[347993221,1736262654035,-1595.23,0.00010513,2]
[347993223,1736262654046,-500.0,0.00010513,2]
[347993225,1736262654060,-960.45,0.00010513,2]
[347993227,1736262654089,-500.0,0.00010513,2]
[347993229,1736262654100,-1419.76,0.00010513,2]
[347993231,1736262654114,-2796.77,0.00010513,2]
[347993234,1736262654125,-500.0,0.00010513,2]
[347993235,1736262654136,-823.76,0.00010513,2]
[347993238,1736262654148,-500.0,0.00010513,2]
[347993240,1736262654159,-517.0,0.00010513,2]
[347993242,1736262654171,-970.76,0.00010513,2]
[347993244,1736262654181,-500.0,0.00010513,2]
[347993245,1736262654191,-500.0,0.00010513,2]
[347993247,1736262654203,-559.9,0.00010513,2]
[347993250,1736262654214,-500.0,0.00010513,2]
[347993251,1736262654224,-607.55,0.00010513,2]
[347993253,1736262654234,-1299.79,0.00010513,2]
[347993255,1736262654245,-500.0,0.00010513,2]
[347993257,1736262654256,-500.0,0.00010513,2]
[347993259,1736262654268,-881.28,0.00010513,2]
[347993261,1736262654280,-1569.73,0.00010513,2]
[347993263,1736262654290,-4772.5,0.00010513,2]
[347993265,1736262654301,-687.73,0.00010513,2]
[347993267,1736262654311,-500.0,0.00010513,2]
[347993269,1736262654322,-626.41,0.00010513,2]
[347993271,1736262654333,-1182.71,0.00010513,2]
[347993273,1736262654343,-608.81186017,0.00010513,2]
[347993283,1736262654445,-500.0,0.00010239,2]
[347993285,1736262654457,-992.25813983,0.00010513,2]
[347993287,1736262654471,-508.69578017,0.00010513,2]
[347993289,1736262654487,-649.39421983,0.00010513,2]
[347993291,1736262654499,-279.45082569,0.00010513,2]
[347993294,1736262654514,-220.54917431,0.00010513,2]
[347993296,1736262654525,-1676.54,0.00010513,2]
[347993298,1736262654537,-254.9306857,0.00010513,2]
[347993300,1736262654549,-429.6593143,0.00010513,2]
[347993302,1736262654560,-1032.32,0.00010513,2]
[347993304,1736262654586,-535.0206857,0.00010513,2]
[347993306,1736262654600,-3010.6893143,0.00010513,2]
[347993308,1736262654613,-1529.31,0.00010513,2]
[347993310,1736262654625,-644.33,0.00010513,2]
[347993312,1736262654636,-967.44,0.00010513,2]
[347993314,1736262654647,-2003.24,0.00010513,2]
[347993316,1736262654658,-1128.03,0.00010513,2]
[347993318,1736262654669,-919.47,0.00010513,2]
[347993320,1736262654680,-500.0,0.00010513,2]
[347993322,1736262654691,-500.0,0.00010513,2]
[347993324,1736262654703,-500.0,0.00010513,2]
[347993326,1736262654713,-9398.38,0.00010513,2]
[347993328,1736262654724,-500.0,0.00010513,2]
[347993330,1736262654734,-500.0,0.00010513,2]
[347993332,1736262654745,-2716.37,0.00010513,2]
[347993334,1736262654756,-1331.76,0.00010513,2]
[347993336,1736262654767,-500.0,0.00010513,2]
[347993338,1736262654780,-500.0,0.00010513,2]
[347993340,1736262654792,-623.8,0.00010513,2]
[347993342,1736262654802,-1298.0,0.00010513,2]
[347993344,1736262654818,-500.0,0.00010513,2]
[347993346,1736262654839,-500.0,0.00010513,2]
[347993348,1736262654851,-526.79800465,0.00010514,2]
[347993350,1736262654861,-500.0,0.00010514,2]
[347993352,1736262654871,-537.9,0.00010514,2]
[347993354,1736262654883,-500.0,0.00010514,2]
[347993356,1736262654894,-74.82720033,0.00010514,2]
[347993358,1736262654908,-425.17279967,0.00010514,2]
[347993360,1736262654918,-123.62662096,0.00010514,2]
[347993362,1736262654932,-376.37337904,0.00010514,2]
[347993364,1736262654943,-901.06,0.00010514,2]
[347993366,1736262654953,-500.0,0.00010514,2]
[347993368,1736262654965,-652.56,0.00010514,2]
[347993370,1736262654975,-824.46,0.00010514,2]
[347993372,1736262654986,-500.0,0.00010514,2]
[347993374,1736262654997,-500.0,0.00010514,2]
[347993375,1736262655009,-500.0,0.00010514,2]
[347993376,1736262655019,-500.0,0.00010514,2]
[347993377,1736262655028,-500.0,0.00010514,2]
[347993378,1736262655038,-500.0,0.00010514,2]
[347993379,1736262655049,-500.0,0.00010514,2]
[347993380,1736262655059,-500.0,0.00010514,2]
[347993381,1736262655078,-500.0,0.00010514,2]
[347993382,1736262655093,-357.76340856,0.00010514,2]
[347993384,1736262655105,-500.0,0.00010514,2]
[347993386,1736262655116,-604.2,0.00010514,2]
[347993388,1736262655128,-500.0,0.00010514,2]
[347993390,1736262655137,-500.0,0.00010514,2]
[347993392,1736262655147,-500.0,0.00010514,2]
[347993394,1736262655157,-500.0,0.00010514,2]
[347993396,1736262655167,-500.0,0.00010514,2]
[347993398,1736262655179,-500.0,0.00010514,2]
[347993400,1736262655189,-578.14,0.00010514,2]
[347993402,1736262655199,-940.14,0.00010514,2]
[347993404,1736262655209,-500.0,0.00010514,2]
[347993406,1736262655222,-500.0,0.00010514,2]
[347993408,1736262655235,-501.04,0.00010514,2]
[347993410,1736262655245,-500.0,0.00010514,2]
[347993412,1736262655256,-500.0,0.00010514,2]
[347993414,1736262655267,-505.89,0.00010514,2]
[347993416,1736262655278,-500.0,0.00010514,2]
[347993418,1736262655290,-500.0,0.00010514,2]
[347993420,1736262655301,-500.0,0.00010514,2]
[347993421,1736262655311,-500.0,0.00010514,2]
[347993424,1736262655331,-500.0,0.00010514,2]
[347993425,1736262655342,-500.0,0.00010514,2]
[347993427,1736262655352,-736.32,0.00010514,2]
[347993429,1736262655363,-552.87,0.00010514,2]
[347993431,1736262655375,-500.0,0.00010514,2]
[347993433,1736262655386,-500.0,0.00010514,2]
[347993435,1736262655396,-500.0,0.00010514,2]
[347993437,1736262655406,-500.0,0.00010514,2]
[347993439,1736262655416,-505.07,0.00010514,2]
[347993441,1736262655427,-500.0,0.00010514,2]
[347993443,1736262655437,-500.0,0.00010514,2]
[347993445,1736262655447,-500.0,0.00010514,2]
[347993447,1736262655459,-500.0,0.00010514,2]
[347993449,1736262655470,-500.0,0.00010514,2]
[347993451,1736262655483,-500.0,0.00010514,2]
[347993453,1736262655494,-151.54497615,0.00010514,2]
[347993455,1736262655508,-348.45502385,0.00010514,2]
[347993457,1736262655519,-500.0,0.00010514,2]
[347993459,1736262655531,-846.86,0.00010514,2]
[347993461,1736262655541,-2061.41,0.00010514,2]
[347993463,1736262655552,-500.0,0.00010514,2]
[347993465,1736262655564,-682.55,0.00010514,2]
[347993467,1736262655579,-500.0,0.00010514,2]
[347993469,1736262655590,-500.0,0.00010514,2]
[347993471,1736262655600,-500.0,0.00010514,2]
[347993473,1736262655609,-500.0,0.00010514,2]
[347993475,1736262655619,-500.0,0.00010514,2]
[347993477,1736262655629,-683.77,0.00010514,2]
[347993479,1736262655640,-500.0,0.00010514,2]
[347993481,1736262655651,-500.0,0.00010514,2]
[347993483,1736262655662,-640.2,0.00010514,2]
[347993485,1736262655672,-500.0,0.00010514,2]
[347993487,1736262655683,-534.29,0.00010514,2]
[347993489,1736262655694,-1388.3,0.00010514,2]
[347993491,1736262655705,-1005.58647878,0.00010514,2]
[347993493,1736262655719,-306.63352122,0.00010514,2]
[347993495,1736262655730,-819.24,0.00010514,2]
[347993497,1736262655741,-1024.27758546,0.00010514,2]
[347993499,1736262655753,-2690.43699702,0.00010514,2]
[347993501,1736262655767,-501.63541752,0.00010514,2]
[347993503,1736262655778,-500.0,0.00010514,2]
[347993505,1736262655788,-500.0,0.00010514,2]
[347993507,1736262655800,-1928.38,0.00010514,2]
[347993509,1736262655810,-1764.27,0.00010514,2]
[347993512,1736262655833,-500.0,0.00010514,2]
[347993514,1736262655850,-2935.1,0.00010514,2]
[347993516,1736262655861,-500.0,0.00010514,2]
[347993517,1736262655871,-500.0,0.00010514,2]
[347993519,1736262655884,-500.0,0.00010514,2]
[347993521,1736262655896,-500.0,0.00010514,2]
[347993523,1736262655911,-500.0,0.00010514,2]
[347993525,1736262655923,-875.04,0.00010514,2]
[347993526,1736262655935,-800.66,0.00010514,2]
[347993528,1736262655947,-619.1,0.00010514,2]
[347993530,1736262655958,-2602.79405922,0.00010514,2]
[347993565,1736262656596,-500.0,9.966e-05,2]
[347993567,1736262656606,-180.62167449,0.0001004,2]
[347993571,1736262656654,-319.37832551,0.0001004,2]
[347993572,1736262656665,-500.0,0.00010513,2]
[347993574,1736262656676,-672.83070253,0.00010514,2]
[347993576,1736262656687,-734.17895607,0.00010514,2]
[347993578,1736262656700,-265.40138047,0.00010514,2]
[347993579,1736262656712,-1299.55490171,0.00010514,2]
[347993581,1736262656723,-500.0,0.00010514,2]
[347993583,1736262656734,-500.0,0.00010514,2]
[347993584,1736262656745,-500.0,0.00010514,2]
[347993586,1736262656756,-810.19,0.00010514,2]
[347993588,1736262656766,-500.0,0.00010514,2]
[347993589,1736262656778,-500.0,0.00010514,2]
[347993591,1736262656788,-625.4,0.00010514,2]
[347993593,1736262656799,-5306.22,0.00010514,2]
[347993594,1736262656810,-500.0,0.00010514,2]
[347993596,1736262656834,-699.1,0.00010514,2]
[347993598,1736262656846,-500.0,0.00010514,2]
[347993600,1736262656856,-812.45,0.00010514,2]
[347993602,1736262656867,-517.57,0.00010514,2]
[347993604,1736262656880,-595.89,0.00010514,2]
[347993606,1736262656891,-532.04,0.00010514,2]
[347993608,1736262656902,-500.0,0.00010514,2]
[347993610,1736262656913,-500.0,0.00010514,2]
[347993612,1736262656923,-500.0,0.00010514,2]
[347993614,1736262656933,-1416.64,0.00010514,2]
[347993616,1736262656944,-913.13,0.00010514,2]
[347993618,1736262656955,-500.0,0.00010514,2]
[347993620,1736262656967,-982.41,0.00010514,2]
[347993622,1736262656978,-559.24,0.00010514,2]
[347993624,1736262656989,-500.0,0.00010514,2]
[347993626,1736262657001,-504.53,0.00010514,2]
[347993628,1736262657011,-740.91,0.00010514,2]
[347993630,1736262657023,-947.38,0.00010514,2]
[347993632,1736262657037,-3101.3,0.00010514,2]
[347993634,1736262657048,-567.13,0.00010514,2]
[347993636,1736262657059,-500.0,0.00010514,2]
[347993637,1736262657077,-547.23,0.00010514,2]
[347993638,1736262657090,-876.4,0.00010514,2]
[347993639,1736262657101,-500.0,0.00010514,2]
[347993640,1736262657113,-609.66,0.00010514,2]
[347993641,1736262657125,-524.12,0.00010514,2]
[347993642,1736262657141,-504.3,0.00010514,2]
[347993643,1736262657153,-1108.84,0.00010514,2]
[347993644,1736262657165,-500.0,0.00010514,2]
[347993645,1736262657177,-500.0,0.00010514,2]
[347993646,1736262657189,-812.27,0.00010514,2]
[347993647,1736262657201,-501.6,0.00010514,2]
[347993648,1736262657213,-500.0,0.00010514,2]
[347993649,1736262657223,-6774.01,0.00010514,2]
[347993650,1736262657234,-500.0,0.00010514,2]
[347993651,1736262657245,-893.01,0.00010514,2]
[347993652,1736262657255,-500.0,0.00010514,2]
[347993653,1736262657266,-847.04,0.00010514,2]
[347993654,1736262657278,-500.0,0.00010514,2]
[347993655,1736262657289,-500.0,0.00010514,2]
[347993657,1736262657300,-500.0,0.00010514,2]
[347993658,1736262657311,-500.0,0.00010514,2]
[347993660,1736262657330,-625.57,0.00010514,2]
[347993662,1736262657342,-1097.4,0.00010514,2]
[347993664,1736262657353,-500.0,0.00010514,2]
[347993666,1736262657364,-563.23,0.00010514,2]
[347993667,1736262657375,-615.57,0.00010514,2]
[347993669,1736262657385,-500.0,0.00010514,2]
[347993672,1736262657398,-500.0,0.00010514,2]
[347993674,1736262657408,-1408.96,0.00010514,2]
[347993676,1736262657419,-500.0,0.00010514,2]
[347993678,1736262657430,-1021.92,0.00010514,2]
[347993680,1736262657441,-535.29,0.00010514,2]
[347993681,1736262657452,-500.0,0.00010514,2]
[347993683,1736262657463,-588.69,0.00010514,2]
[347993685,1736262657475,-920.61,0.00010514,2]
[347993687,1736262657486,-500.0,0.00010514,2]
[347993689,1736262657498,-1477.09,0.00010514,2]
[347993691,1736262657508,-928.78,0.00010514,2]
[347993693,1736262657518,-611.48,0.00010514,2]
[347993695,1736262657527,-597.33,0.00010514,2]
[347993697,1736262657537,-627.19,0.00010514,2]
[347993699,1736262657547,-500.0,0.00010514,2]
[347993701,1736262657557,-500.0,0.00010514,2]
[347993703,1736262657576,-850.24,0.00010514,2]
[347993705,1736262657586,-500.0,0.00010514,2]
[347993707,1736262657596,-500.0,0.00010514,2]
[347993709,1736262657606,-676.0,0.00010514,2]
[347993711,1736262657616,-500.0,0.00010514,2]
[347993713,1736262657625,-1833.42,0.00010514,2]
[347993715,1736262657635,-500.0,0.00010514,2]
[347993717,1736262657645,-966.83,0.00010514,2]
[347993719,1736262657655,-546.19,0.00010514,2]
[347993721,1736262657665,-585.7,0.00010514,2]
[347993723,1736262657675,-2074.96,0.00010514,2]
[347993725,1736262657686,-500.0,0.00010514,2]
[347993727,1736262657696,-518.31,0.00010514,2]
[347993729,1736262657706,-588.31,0.00010514,2]
[347993731,1736262657716,-500.0,0.00010514,2]
[347993733,1736262657727,-1505.25,0.00010514,2]
[347993735,1736262657736,-1855.72,0.00010514,2]
[347993737,1736262657746,-567.53,0.00010514,2]
[347993739,1736262657757,-1936.71,0.00010514,2]
[347993741,1736262657767,-500.0,0.00010514,2]
[347993742,1736262657778,-990.5,0.00010514,2]
[347993745,1736262657788,-536.84,0.00010514,2]
[347993747,1736262657798,-500.0,0.00010515,2]
[347993748,1736262657808,-500.0,0.00010515,2]
[347993751,1736262657825,-500.0,0.00010515,2]
[347993752,1736262657841,-500.0,0.00010515,2]
[347993754,1736262657852,-552.75,0.00010515,2]
[347993757,1736262657865,-500.0,0.00010515,2]
[347993759,1736262657880,-500.0,0.00010515,2]
[347993761,1736262657890,-500.0,0.00010515,2]
[347993763,1736262657901,-500.0,0.00010515,2]
[347993764,1736262657913,-662.78,0.00010515,2]
[347993767,1736262657924,-470.4658727,0.00010515,2]
[347993768,1736262657935,-500.0,0.00010515,2]
[347993771,1736262657946,-500.0,0.00010515,2]
[347993772,1736262657957,-682.01,0.00010515,2]
[347993774,1736262657968,-500.0,0.00010515,2]
[347993776,1736262657980,-500.0,0.00010515,2]
[347993778,1736262657992,-500.0,0.00010515,2]
[347993780,1736262658003,-969.32,0.00010515,2]
[347993782,1736262658014,-500.0,0.00010515,2]
[347993784,1736262658024,-500.0,0.00010515,2]
[347993786,1736262658035,-578.01,0.00010515,2]
[347993788,1736262658046,-958.61,0.00010515,2]
[347993790,1736262658058,-500.0,0.00010516,2]
[347993792,1736262658075,-1994.2,0.00010516,2]
[347993794,1736262658086,-1829.52,0.00010516,2]
[347993796,1736262658098,-2261.8,0.00010516,2]
[347993798,1736262658109,-6767.08,0.00010516,2]
[347993800,1736262658119,-2787.82,0.00010516,2]
[347993802,1736262658130,-2741.97,0.00010516,2]
[347993804,1736262658141,-2973.81,0.00010516,2]
[347993806,1736262658153,-500.0,0.00010516,2]
[347993808,1736262658163,-894.31,0.00010516,2]
[347993810,1736262658173,-4586.92,0.00010516,2]
[347993812,1736262658184,-1401.32,0.00010516,2]
[347993814,1736262658194,-881.1,0.00010516,2]
[347993815,1736262658204,-2528.5,0.00010516,2]
[347993817,1736262658215,-1300.76,0.00010516,2]
[347993819,1736262658226,-10024.56,0.00010516,2]
[347993821,1736262658236,-2601.09,0.00010516,2]
[347993823,1736262658246,-5559.01,0.00010516,2]
[347993825,1736262658257,-2386.12,0.00010516,2]
[347993827,1736262658269,-1604.65,0.00010516,2]
[347993829,1736262658279,-2923.56,0.00010516,2]
[347993832,1736262658290,-6648.59,0.00010516,2]
[347993833,1736262658301,-1665.59,0.00010516,2]
[347993835,1736262658311,-500.0,0.00010516,2]
[347993838,1736262658328,-3246.3,0.00010516,2]
[347993839,1736262658339,-1337.5,0.00010516,2]
[347993842,1736262658350,-1338.74,0.00010516,2]
[347993843,1736262658359,-521.18,0.00010516,2]
[347993845,1736262658367,-5846.29,0.00010516,2]
[347993848,1736262658379,-1780.68,0.00010516,2]
[347993850,1736262658389,-2777.67,0.00010516,2]
[347993852,1736262658399,-2668.87,0.00010516,2]
[347993854,1736262658409,-2018.16,0.00010516,2]
[347993856,1736262658419,-3313.36,0.00010516,2]
[347993857,1736262658429,-1456.5,0.00010516,2]
[347993859,1736262658439,-4406.75,0.00010517,2]
[347993861,1736262658449,-3434.44,0.00010517,2]
[347993863,1736262658459,-1707.34,0.00010517,2]
[347993866,1736262658471,-3888.42,0.00010517,2]
[347993867,1736262658482,-604.3,0.00010517,2]
[347993870,1736262658492,-1690.08,0.00010517,2]
[347993872,1736262658502,-2219.59,0.00010517,2]
[347993873,1736262658512,-156.225,0.0001055,2]
[347993876,1736262658521,-150.0,0.0001055,2]
[347993877,1736262658531,-150.0,0.00010568,2]
[347993880,1736262658541,-1942.47998981,0.00010587,2]
[347993881,1736262658551,-927.79,0.00010588,2]
[347993883,1736262658560,-2874.3,0.00010588,2]
[347993885,1736262658576,-1637.0,0.00010588,2]
[347993887,1736262658586,-1965.95,0.00010588,2]
[347993889,1736262658596,-5800.0,0.000106,3]
[347993891,1736262658605,-150.0,0.00010625,2]
[347993893,1736262658617,-150.0,0.0001065,2]
[347993895,1736262658627,-150.0,0.00010673,2]
[347993897,1736262658637,-1423.33,0.000107,2]
[347993899,1736262658647,-7300.0,0.000107,3]
[347993901,1736262658656,-1427.0,0.000107,2]
[347993903,1736262658666,-150.0,0.00010726,2]
[347993905,1736262658675,-1856.08936543,0.00010741,2]
[347993907,1736262658685,-2136.737,0.00010747,2]
[347993909,1736262658695,-179.745,0.00010747,2]
[347993911,1736262658705,-150.0,0.00010765,2]
[347993913,1736262658716,-2000.0,0.0001078,2]
[347993915,1736262658725,-2524.39,0.00010786,2]
[347993917,1736262658735,-1913.75,0.00010786,2]
[347993919,1736262658744,-1640.33,0.00010786,2]
[347993921,1736262658753,-5646.88,0.00010786,2]
[347993923,1736262658763,-3766.32,0.00010786,2]
[347993925,1736262658773,-9218.37,0.00010786,2]
[347993927,1736262658783,-4993.43,0.00010786,2]
[347993929,1736262658792,-500.0,0.00010786,2]
[347993931,1736262658803,-1147.2,0.00010786,2]
[347993933,1736262658813,-3138.89,0.00010786,2]
[347993935,1736262658835,-7297.15,0.00010786,2]
[347993938,1736262658856,-1967.75,0.00010786,2]
[347993940,1736262658867,-1885.76,0.00010786,2]
[347993942,1736262658878,-862.95,0.00010786,2]
[347993944,1736262658888,-6308.87,0.00010786,2]
[347993946,1736262658898,-3655.87,0.00010786,2]
[347993948,1736262658908,-529.64,0.00010786,2]
[347993951,1736262658919,-500.0,0.00010786,2]
[347993952,1736262658929,-3564.03,0.00010786,2]
[347993954,1736262658939,-884.02,0.00010786,2]
[347993957,1736262658951,-2502.01,0.00010786,2]
[347993958,1736262658961,-771.61,0.00010786,2]
[347993960,1736262658971,-500.0,0.00010787,2]
[347993962,1736262658980,-2117.31,0.00010787,2]
[347993964,1736262658990,-1640.34,0.00010787,2]
[347993966,1736262658999,-848.9,0.00010787,2]
[347993968,1736262659010,-516.31,0.00010787,2]
[347993970,1736262659020,-500.0,0.00010787,2]
[347993972,1736262659029,-890.07,0.00010787,2]
[347993974,1736262659038,-553.96,0.00010787,2]
[347993976,1736262659048,-500.0,0.00010787,2]
[347993978,1736262659058,-1968.29,0.00010787,2]
[347993980,1736262659075,-500.0,0.00010787,2]
[347993982,1736262659085,-500.0,0.00010787,2]
[347993984,1736262659095,-2031.5,0.00010787,2]
[347993986,1736262659105,-815.38,0.00010787,2]
[347993988,1736262659115,-755.1,0.00010787,2]
[347993990,1736262659125,-500.0,0.00010787,2]
[347993992,1736262659136,-1407.37,0.00010787,2]
[347993994,1736262659147,-500.0,0.00010787,2]
[347993996,1736262659157,-941.38,0.00010787,2]
[347993998,1736262659168,-500.0,0.00010787,2]
[347994000,1736262659177,-639.93,0.00010787,2]
[347994002,1736262659188,-922.69,0.00010787,2]
[347994004,1736262659199,-560.94,0.00010787,2]
[347994006,1736262659209,-500.0,0.00010787,2]
[347994008,1736262659220,-500.0,0.00010787,2]
[347994011,1736262659230,-569.19,0.00010787,2]
[347994012,1736262659240,-590.44,0.00010787,2]
[347994015,1736262659251,-617.42,0.00010787,2]
[347994017,1736262659261,-763.06,0.00010787,2]
[347994019,1736262659272,-1409.42,0.00010787,2]
[347994021,1736262659283,-500.0,0.00010787,2]
[347994023,1736262659294,-544.01,0.00010787,2]
[347994025,1736262659305,-942.94,0.00010787,2]
[347994027,1736262659318,-500.0,0.00010787,2]
[347994029,1736262659333,-500.0,0.00010787,2]
[347994031,1736262659344,-500.0,0.00010787,2]
[347994033,1736262659355,-562.09,0.00010787,2]
[347994035,1736262659366,-1099.11,0.00010787,2]
[347994036,1736262659376,-582.68,0.00010787,2]
[347994038,1736262659386,-1458.4,0.00010787,2]
[347994040,1736262659397,-910.45,0.00010787,2]
[347994043,1736262659407,-1615.76,0.00010787,2]
[347994062,1736262659606,-924.05,0.00010787,2]
[347994064,1736262659618,-1168.85,0.00010787,2]
[347994066,1736262659630,-500.0,0.00010787,2]
[347994068,1736262659641,-1062.63,0.00010787,2]
[347994070,1736262659652,-500.0,0.00010787,2]
[347994072,1736262659663,-1426.18,0.00010787,2]
[347994074,1736262659675,-1649.02,0.00010787,2]
[347994076,1736262659686,-520.91,0.00010787,2]
[347994078,1736262659697,-500.0,0.00010787,2]
[347994080,1736262659707,-500.0,0.00010787,2]
[347994082,1736262659717,-926.0,0.00010787,2]
[347994084,1736262659727,-535.94,0.00010787,2]
[347994086,1736262659736,-500.0,0.00010787,2]
[347994088,1736262659746,-725.21,0.00010787,2]
[347994090,1736262659755,-500.0,0.00010787,2]
[347994092,1736262659765,-500.0,0.00010787,2]
[347994094,1736262659775,-475.6593377,0.00010787,2]
[347994096,1736262659785,-1644.77,0.00010787,2]
[347994098,1736262659795,-1064.43,0.00010787,2]
[347994100,1736262659806,-500.0,0.00010787,2]